bitfinex/quotes_BTCUSD_20250908
["timestamp","ask_amount","ask_price","bid_price","bid_amount"]
[1757320932543,0.002,111810.0,111800.0,0.76268686]
[1757320932746,0.002,111810.0,111800.0,1.07418974]
[1757320934038,0.18284487,111810.0,111800.0,0.61080686]
[1757320934270,0.00707,111810.0,111800.0,1.07206974]
[1757320934495,0.00707,111810.0,111800.0,1.38357262]
[1757320934958,0.18594487,111810.0,111800.0,1.38569262]
[1757320935575,0.00707,111810.0,111800.0,1.38569262]
[1757320936500,0.18594487,111810.0,111800.0,1.38569262]
[1757320938016,0.18087487,111810.0,111800.0,1.38569262]
[1757320939902,0.002,111810.0,111800.0,1.38569262]
[1757320941626,0.18087487,111810.0,111800.0,1.38569262]
[1757320942056,0.18087487,111810.0,111800.0,0.76268686]
[1757320942295,0.18087487,111810.0,111800.0,1.38569262]
[1757320942959,0.18087487,111810.0,111800.0,0.76268686]
[1757320943175,0.18087487,111810.0,111800.0,1.38569262]
[1757320946129,0.18087487,111810.0,111800.0,1.23593262]
[1757320946359,0.18087487,111810.0,111800.0,1.38565262]
[1757320950215,0.18617487,111810.0,111800.0,1.23593262]
[1757320950577,0.18617487,111810.0,111800.0,1.38565262]
[1757320951059,0.18087487,111810.0,111800.0,1.38565262]
[1757320951690,0.18407487,111810.0,111800.0,1.38565262]
[1757320952210,0.18087487,111810.0,111800.0,1.38565262]
[1757320953666,0.002,111810.0,111800.0,1.38565262]
[1757320953886,0.18087487,111810.0,111800.0,1.38565262]
[1757320958390,0.18087487,111810.0,111800.0,1.07393933]
[1757320959572,0.18087487,111810.0,111800.0,0.76264686]
[1757320959788,0.18087487,111810.0,111800.0,1.07393933]
[1757320961223,0.18407487,111810.0,111800.0,1.07393933]
[1757320961468,0.18087487,111810.0,111800.0,1.07393933]
[1757320963140,0.18617487,111810.0,111800.0,1.07181933]
[1757320963978,0.18617487,111810.0,111800.0,1.07377933]
[1757320964347,0.18617487,111810.0,111800.0,1.10064539]
[1757320966216,0.18407487,111810.0,111800.0,1.10064539]
[1757320966399,0.002,111810.0,111800.0,1.10064539]
[1757320966676,0.18087487,111810.0,111800.0,1.10064539]
[1757320967134,0.002,111810.0,111800.0,1.41393786]
[1757320967566,0.002,111810.0,111800.0,1.67713786]
[1757320968196,0.001,111810.0,111800.0,1.67713786]
[1757320968903,0.001,111810.0,111800.0,1.68599257]
[1757320969815,0.17884316,111830.0,111820.0,0.17885888]
[1757320970011,0.0032,111840.0,111830.0,0.17884288]
[1757320970225,0.18202689,111840.0,111830.0,0.73369134]
[1757320970477,0.18202689,111840.0,111830.0,0.40320846]
[1757320970478,0.18412689,111840.0,111830.0,0.40320846]
[1757320970684,0.18412689,111840.0,111830.0,0.09191599]
[1757320972310,0.18412689,111840.0,111830.0,0.09291599]
[1757320973807,0.18412689,111840.0,111830.0,0.27175887]
[1757320973935,0.18412689,111840.0,111830.0,0.58305134]
[1757320974775,0.18412689,111840.0,111830.0,0.40420846]
[1757320974974,0.18780334,111850.0,111830.0,0.40420846]
[1757320975184,0.19080822,111860.0,111840.0,1.04300782]
[1757320975395,0.1788109,111850.0,111840.0,0.24159599]
[1757320975768,0.1788109,111850.0,111840.0,0.42238288]
[1757320976073,0.19080822,111860.0,111840.0,0.42238288]
[1757320976233,0.34048822,111860.0,111840.0,0.43140333]
[1757320976436,0.1788109,111850.0,111840.0,0.43140333]
[1757320976636,0.34048822,111860.0,111840.0,0.7426958]
[1757320977258,0.34048822,111860.0,111840.0,0.73367535]
[1757320977664,0.34048822,111860.0,111850.0,0.49010337]
[1757320977868,0.34253822,111860.0,111850.0,0.1788109]
[1757320978103,0.34253822,111860.0,111850.0,0.49010337]
[1757320978271,0.34353822,111860.0,111850.0,0.49010337]
[1757320978709,0.34253822,111860.0,111850.0,0.49010337]
[1757320979244,0.34353822,111860.0,111850.0,0.49010337]
[1757320979427,0.19385822,111860.0,111850.0,0.49010337]
[1757320979635,0.19485822,111860.0,111850.0,0.49206337]
[1757320979893,0.34244822,111860.0,111850.0,0.58397936]
[1757320980296,0.34244822,111860.0,111850.0,0.40516846]
[1757320980451,0.34449822,111860.0,111850.0,0.40516846]
[1757320981109,0.34449822,111860.0,111850.0,0.40320846]
[1757320981305,0.34449822,111860.0,111850.0,0.40516846]
[1757320981694,0.34249822,111860.0,111850.0,0.58397936]
[1757320982201,0.34249822,111860.0,111850.0,0.58497936]
[1757320982423,0.34249822,111860.0,111850.0,0.40616846]
[1757320983575,0.34249822,111860.0,111850.0,0.40420846]
[1757320984210,0.19080822,111860.0,111850.0,0.58497936]
[1757320984462,0.32853848,111860.0,111850.0,0.58497936]
[1757320984696,0.32853848,111860.0,111850.0,0.27368689]
[1757320984906,0.32853848,111860.0,111850.0,0.58497936]
[1757320985532,0.33355848,111860.0,111850.0,0.40616846]
[1757320985958,0.33355848,111860.0,111850.0,0.58497936]
[1757320986195,0.18391848,111860.0,111850.0,0.60291936]
[1757320986410,0.17889848,111860.0,111850.0,0.58497936]
[1757320986615,0.32849848,111860.0,111850.0,0.58497936]
[1757320988237,0.17889848,111860.0,111850.0,0.58497936]
[1757320988461,0.1496,111860.0,111850.0,0.58697936]
[1757320988679,0.17879492,111860.0,111850.0,0.27368689]
[1757320988891,0.38016673,111870.0,111850.0,0.58497936]
[1757320989105,0.23056673,111870.0,111860.0,0.58200338]
[1757320989319,0.38016673,111870.0,111860.0,0.27267091]
[1757320989535,0.38221673,111870.0,111860.0,0.27267091]
[1757320989972,0.38221673,111870.0,111860.0,0.09387599]
[1757320990184,0.23056673,111870.0,111860.0,0.27267091]
[1757320990397,0.37719673,111870.0,111860.0,0.58396338]
[1757320990608,0.38221673,111870.0,111860.0,0.09191599]
[1757320990822,0.17879492,111860.0,111850.0,0.54566431]
[1757320991059,0.18084492,111860.0,111850.0,0.7871803]
[1757320991274,0.38216673,111870.0,111850.0,1.10043277]
[1757320991482,0.17879492,111860.0,111850.0,1.10043277]
[1757320992180,0.38116673,111870.0,111850.0,1.10043277]
[1757320992418,0.17879492,111860.0,111850.0,1.10043277]
[1757320992640,0.38116673,111870.0,111850.0,1.10043277]
[1757320993269,0.38016673,111870.0,111850.0,1.10043277]
[1757320993672,0.17879492,111860.0,111850.0,0.95083277]
[1757320993896,0.17879492,111860.0,111850.0,1.10043277]
[1757320994251,0.38116673,111870.0,111850.0,1.10043277]
[1757320994655,0.38016673,111870.0,111850.0,1.10043277]
[1757320994858,0.38016673,111870.0,111850.0,1.10143277]
[1757320995483,0.17879492,111860.0,111850.0,1.10143277]
[1757320995946,0.38016673,111870.0,111850.0,1.10143277]
[1757320996153,0.38016673,111870.0,111850.0,0.7901403]
[1757320996579,0.38016673,111870.0,111860.0,0.27071091]
[1757320996915,0.38016673,111870.0,111860.0,0.27267091]
[1757320998107,0.38221673,111870.0,111860.0,0.27267091]
[1757320998500,0.38221673,111870.0,111860.0,0.27367091]
[1757320998726,0.37719673,111870.0,111860.0,0.27367091]
[1757320999112,0.38016673,111870.0,111860.0,0.27367091]
[1757320999360,0.38221673,111870.0,111860.0,0.09487599]
[1757320999750,0.19826,111870.0,111860.0,0.58496338]
[1757320999963,0.0487,111870.0,111860.0,0.58496338]
[1757321000182,0.0487,111870.0,111860.0,0.6118148]
[1757321000955,0.0487,111870.0,111860.0,0.30052233]
[1757321001188,0.0487,111870.0,111860.0,0.9538148]
[1757321001991,0.0487,111870.0,111860.0,0.9518148]
[1757321004001,0.0487,111870.0,111860.0,0.64052233]
[1757321004238,0.23241893,111870.0,111860.0,0.78812233]
[1757321004666,0.23241893,111870.0,111860.0,0.79017233]
[1757321005774,0.0487,111870.0,111860.0,0.79017233]
[1757321008958,0.22747893,111870.0,111860.0,0.79017233]
[1757321009722,0.0487,111870.0,111860.0,0.79017233]
[1757321011828,0.23044893,111870.0,111860.0,0.79017233]
[1757321012027,0.22747893,111870.0,111860.0,0.79017233]
[1757321012232,0.0487,111870.0,111860.0,0.79017233]
[1757321013419,0.0487,111870.0,111860.0,0.9539048]
[1757321013840,0.0487,111870.0,111860.0,1.1034248]
[1757321015082,0.0487,111870.0,111860.0,0.9519048]
[1757321015294,0.0487,111870.0,111860.0,1.1014248]
[1757321016074,0.0487,111870.0,111860.0,1.1034248]
[1757321016313,0.05167,111870.0,111860.0,0.79013233]
[1757321016548,0.23241893,111870.0,111860.0,0.64061233]
[1757321016763,0.23241893,111870.0,111860.0,0.78808233]
[1757321017150,0.05364,111870.0,111860.0,0.79013233]
[1757321017362,0.23241893,111870.0,111860.0,0.79013233]
[1757321017606,0.23241893,111870.0,111860.0,0.64061233]
[1757321017820,0.23241893,111870.0,111860.0,0.78808233]
[1757321018426,0.54350423,111870.0,111860.0,0.60928741]
[1757321018633,0.54350423,111870.0,111860.0,0.58243599]
[1757321018791,0.23241893,111870.0,111860.0,0.58243599]
[1757321019002,0.23241893,111870.0,111860.0,1.38745151]
[1757321019003,0.0487,111870.0,111860.0,1.38745151]
[1757321019242,0.0487,111870.0,111860.0,0.76528091]
[1757321019416,0.0487,111870.0,111860.0,1.41230136]
[1757321019632,0.0487,111870.0,111860.0,1.10121606]
[1757321019813,0.0487,111870.0,111860.0,1.41230136]
[1757321020294,0.0487,111870.0,111860.0,0.64061076]
[1757321020505,0.0487,111870.0,111860.0,1.10121606]
[1757321020709,0.0487,111870.0,111860.0,1.41230136]
[1757321021950,0.0487,111870.0,111860.0,0.79013076]
[1757321022162,0.0487,111870.0,111860.0,1.41230136]
[1757321022376,0.0487,111870.0,111860.0,1.10121606]
[1757321022623,0.0487,111870.0,111860.0,1.10321606]
[1757321022839,0.0487,111870.0,111860.0,1.41430136]
[1757321024622,0.0487,111870.0,111860.0,1.67750136]
[1757321025910,0.0487,111870.0,111860.0,1.67650136]
[1757321026637,0.0487,111870.0,111860.0,1.67850136]
[1757321026855,0.0487,111870.0,111860.0,1.36541606]
[1757321027278,0.0487,111870.0,111860.0,1.05433076]
[1757321027495,0.0487,111870.0,111860.0,1.36541606]
[1757321027707,0.0487,111870.0,111860.0,1.67650136]
[1757321027893,0.0487,111870.0,111860.0,1.36541606]
[1757321028106,0.0487,111870.0,111860.0,1.10221606]
[1757321028321,0.0487,111870.0,111860.0,1.41330136]
[1757321028696,0.0487,111870.0,111860.0,1.10221606]
[1757321029290,0.0487,111870.0,111860.0,0.79313076]
[1757321029466,0.0487,111870.0,111860.0,1.10421606]
[1757321029932,0.0487,111870.0,111860.0,1.41530136]
[1757321031306,0.0487,111870.0,111860.0,1.4434274]
[1757321032036,0.0487,111870.0,111860.0,1.50718954]
[1757321032172,0.0487,111870.0,111860.0,1.4434274]
[1757321032388,0.0487,111870.0,111860.0,1.4790635]
[1757321032615,0.0487,111870.0,111860.0,1.41530136]
[1757321033251,0.0487,111870.0,111860.0,1.4790635]
[1757321033454,0.0487,111870.0,111860.0,1.41530136]
[1757321034308,0.0487,111870.0,111860.0,1.7901488]
[1757321035550,0.0487,111870.0,111860.0,1.81108762]
[1757321036325,0.0487,111870.0,111860.0,1.86280366]
[1757321036641,0.0487,111870.0,111860.0,1.43620018]
[1757321037219,0.0487,111870.0,111860.0,1.81096443]
[1757321037425,0.0487,111870.0,111860.0,1.74728548]
[1757321037639,0.0487,111870.0,111860.0,1.79700152]
[1757321038075,0.0487,111870.0,111860.0,1.80000152]
[1757321038342,0.15303334,111910.0,111900.0,0.518731]
[1757321038561,0.15303334,111910.0,111900.0,1.30543764]
[1757321038777,0.15303334,111910.0,111900.0,1.45291764]
[1757321039186,0.15303334,111910.0,111900.0,1.47975542]
[1757321039883,0.15303334,111910.0,111900.0,1.01919012]
[1757321040068,0.15516334,111910.0,111900.0,1.16863012]
[1757321040281,0.33694837,111910.0,111900.0,0.95051012]
[1757321040496,0.64803367,111910.0,111900.0,0.11875377]
[1757321040732,0.64803367,111910.0,111900.0,0.11975377]
[1757321040942,0.33694837,111910.0,111900.0,0.09291599]
[1757321041113,0.64803367,111910.0,111900.0,0.09291599]
[1757321041478,0.64803367,111910.0,111900.0,0.09191599]
[1757321041695,0.64803367,111910.0,111890.0,0.02684344]
[1757321041909,0.64803367,111910.0,111890.0,0.09191599]
[1757321041910,0.64511897,111900.0,111890.0,0.09191599]
[1757321042137,0.6444563,111900.0,111890.0,0.09191599]
[1757321042351,0.333371,111900.0,111890.0,0.09191599]
[1757321042955,0.180861,111900.0,111890.0,0.09395599]
[1757321043161,0.178731,111900.0,111890.0,0.59660096]
[1757321043368,0.178731,111900.0,111890.0,0.09395599]
[1757321043548,0.178731,111900.0,111890.0,0.27270297]
[1757321043804,0.178731,111900.0,111890.0,0.09395599]
[1757321044211,0.180861,111900.0,111890.0,0.09395599]
[1757321044391,0.180861,111900.0,111890.0,0.27270297]
[1757321044694,0.178731,111900.0,111890.0,0.27270297]
[1757321044928,0.178731,111900.0,111890.0,0.09191599]
[1757321045142,0.18672367,111900.0,111890.0,0.09291599]
[1757321045353,0.50782899,111900.0,111890.0,0.09291599]
[1757321045573,0.183931,111900.0,111890.0,0.09291599]
[1757321045823,1.37825179,111900.0,111840.0,0.06363676]
[1757321046090,0.1788109,111850.0,111840.0,0.09191599]
[1757321046294,0.1788109,111850.0,111840.0,0.16252811]
[1757321046507,0.3306209,111850.0,111840.0,0.16252811]
[1757321046716,0.18779219,111840.0,111810.0,0.34216342]
[1757321046931,0.18779219,111840.0,111830.0,0.02685675]
[1757321047149,0.17885888,111820.0,111810.0,0.07061212]
[1757321047778,0.18405888,111820.0,111810.0,0.09191599]
[1757321048016,0.33377888,111820.0,111810.0,0.09191599]
[1757321048235,0.18405888,111820.0,111810.0,0.09191599]
[1757321048478,0.14972,111820.0,111810.0,0.93672885]
[1757321048694,0.32856288,111830.0,111820.0,0.17885888]
[1757321048911,0.18404288,111830.0,111820.0,0.09191599]
[1757321049092,0.33380288,111830.0,111820.0,0.09191599]
[1757321049329,0.33380288,111830.0,111820.0,0.27077487]
[1757321049545,0.18779219,111840.0,111820.0,0.27281487]
[1757321049814,0.33750498,111870.0,111850.0,0.17880835]
[1757321050024,0.24748878,111880.0,111860.0,0.27071091]
[1757321050242,0.33393893,111870.0,111860.0,0.5946089]
[1757321050472,0.0052,111870.0,111860.0,0.27071091]
[1757321050738,0.25055878,111880.0,111860.0,0.5966489]
[1757321050991,0.18187878,111880.0,111870.0,0.17877893]
[1757321051220,0.19084841,111890.0,111870.0,0.59459291]
[1757321051438,0.33085296,111880.0,111870.0,0.59459291]
[1757321051654,0.15209,111880.0,111870.0,0.59459291]
[1757321051868,0.23209,111880.0,111870.0,0.59459291]
[1757321052074,0.23516,111880.0,111870.0,0.59459291]
[1757321052474,0.23616,111880.0,111870.0,0.59459291]
[1757321052729,0.23309,111880.0,111870.0,0.59663291]
[1757321052918,0.08213,111880.0,111870.0,0.59663291]
[1757321053120,0.22996,111880.0,111870.0,0.59663291]
[1757321053864,0.08,111880.0,111870.0,0.74659291]
[1757321054314,0.08,111880.0,111870.0,1.08659291]
[1757321054533,0.08,111880.0,111870.0,1.08859291]
[1757321055188,0.48181367,111910.0,111900.0,0.178731]
[1757321055410,0.48394367,111910.0,111900.0,0.59454498]
[1757321055635,0.48383837,111910.0,111900.0,0.59454498]
[1757321056081,0.15823334,111910.0,111900.0,0.59454498]
[1757321056321,0.33694837,111910.0,111900.0,0.27064699]
[1757321056533,0.30299334,111910.0,111900.0,0.59658498]
[1757321056752,0.15303334,111910.0,111900.0,0.59658498]
[1757321057821,0.33174837,111910.0,111900.0,0.59658498]
[1757321058022,0.33387837,111910.0,111900.0,0.59658498]
[1757321058865,0.33694837,111910.0,111900.0,0.56573398]
[1757321059050,0.48686837,111910.0,111900.0,0.74446498]
[1757321059560,0.48686837,111910.0,111900.0,0.24183599]
[1757321060423,0.48686837,111910.0,111900.0,0.24283599]
[1757321060629,0.48686837,111910.0,111900.0,0.09291599]
[1757321061810,0.56686837,111910.0,111900.0,0.09291599]
[1757321062020,0.56686837,111910.0,111900.0,0.27164699]
[1757321062594,0.38815334,111910.0,111900.0,0.27164699]
[1757321062796,0.56686837,111910.0,111900.0,0.59750498]
[1757321063452,0.41387837,111910.0,111900.0,0.59750498]
[1757321063871,0.56367837,111910.0,111900.0,0.59750498]
[1757321064081,0.41387837,111910.0,111900.0,0.59750498]
[1757321064275,0.56662837,111910.0,111900.0,0.59750498]
[1757321064733,0.41682837,111910.0,111900.0,0.59750498]
[1757321064934,0.56662837,111910.0,111900.0,0.59750498]
[1757321065140,0.56662837,111910.0,111900.0,0.41681398]
[1757321065370,0.56662837,111910.0,111900.0,0.27164699]
[1757321065822,0.56154837,111910.0,111900.0,0.59750498]
[1757321066184,0.41174837,111910.0,111900.0,0.59750498]
[1757321067607,0.41375837,111910.0,111900.0,0.59750498]
[1757321067855,0.41670837,111910.0,111900.0,0.59750498]
[1757321068057,0.41670837,111910.0,111900.0,0.27360699]
[1757321068495,0.41670837,111910.0,111900.0,0.27164699]
[1757321069131,0.41670837,111910.0,111900.0,0.09291599]
[1757321072997,0.56138837,111910.0,111900.0,0.59750498]
[1757321073229,0.41174837,111910.0,111900.0,0.59750498]
[1757321073368,0.56138837,111910.0,111900.0,0.59750498]
[1757321074461,0.56339837,111910.0,111900.0,0.59750498]
[1757321074796,0.56634837,111910.0,111900.0,0.59750498]
[1757321075240,0.56634837,111910.0,111900.0,0.41877398]
[1757321075458,0.56634837,111910.0,111900.0,0.41681398]
[1757321075658,0.56634837,111910.0,111900.0,0.27164699]
[1757321075857,0.41670837,111910.0,111900.0,0.27164699]
[1757321076154,0.56630837,111910.0,111900.0,0.27164699]
[1757321077420,0.56630837,111910.0,111900.0,0.09291599]
[1757321079433,0.56630837,111910.0,111900.0,0.27164699]
[1757321079564,0.56630837,111910.0,111900.0,0.09291599]
[1757321079790,0.56626837,111910.0,111900.0,0.09291599]
[1757321079970,0.56622837,111910.0,111900.0,0.09291599]
[1757321080191,0.41670837,111910.0,111900.0,0.09291599]
[1757321080438,0.56622837,111910.0,111900.0,0.09291599]
[1757321081530,0.56622837,111910.0,111900.0,0.09191599]
[1757321082903,0.41670837,111910.0,111900.0,0.27064699]
[1757321083108,0.56618837,111910.0,111900.0,0.27260699]
[1757321083363,0.56618837,111910.0,111900.0,0.09387599]
[1757321083567,0.56618837,111910.0,111900.0,0.09191599]
[1757321085388,0.56618837,111910.0,111900.0,0.27064699]
[1757321085584,0.56618837,111910.0,111900.0,0.09191599]
[1757321086006,0.56618837,111910.0,111900.0,0.27064699]
[1757321086816,0.56618837,111910.0,111900.0,0.09191599]
[1757321090881,0.41174837,111910.0,111900.0,0.27269699]
[1757321091087,0.41174837,111910.0,111900.0,0.77014917]
[1757321091088,0.56122837,111910.0,111900.0,0.77014917]
[1757321091247,0.41174837,111910.0,111900.0,0.77014917]
[1757321091454,0.56122837,111910.0,111900.0,0.77014917]
[1757321092291,0.41174837,111910.0,111900.0,0.77014917]
[1757321092493,0.56122837,111910.0,111900.0,0.77014917]
[1757321093106,0.38251334,111910.0,111900.0,0.77014917]
[1757321093451,0.56122837,111910.0,111900.0,0.77014917]
[1757321093889,0.56318837,111910.0,111900.0,0.77014917]
[1757321094061,0.56622837,111910.0,111900.0,0.77014917]
[1757321094466,0.56618837,111910.0,111900.0,0.77014917]
[1757321094865,0.56118837,111910.0,111900.0,0.77014917]
[1757321095291,0.41174837,111910.0,111900.0,0.77014917]
[1757321095488,0.56118837,111910.0,111900.0,0.77014917]
[1757321095694,0.41174837,111910.0,111900.0,0.77014917]
[1757321096371,0.41674837,111910.0,111900.0,0.77014917]
[1757321096573,0.23303334,111910.0,111900.0,0.77014917]
[1757321096786,0.41174837,111910.0,111900.0,0.77014917]
[1757321097185,0.56118837,111910.0,111900.0,0.77014917]
[1757321097390,0.56618837,111910.0,111900.0,0.77014917]
[1757321097941,0.41674837,111910.0,111900.0,0.77014917]
[1757321098150,0.56618837,111910.0,111900.0,0.77014917]
[1757321098558,0.41674837,111910.0,111900.0,0.77014917]
[1757321098766,0.56618837,111910.0,111900.0,0.77014917]
[1757321098987,0.56618837,111910.0,111900.0,0.76809917]
[1757321099115,0.56618837,111910.0,111900.0,0.58936817]
[1757321099539,0.56618837,111910.0,111900.0,0.76809917]
[1757321100149,0.48618837,111910.0,111900.0,0.58936817]
[1757321100558,0.48618837,111910.0,111900.0,0.76809917]
[1757321100765,0.48618837,111910.0,111900.0,0.09191599]
[1757321102380,0.48618837,111910.0,111900.0,0.40270632]
[1757321102946,0.48118837,111910.0,111900.0,0.58348732]
[1757321103687,0.48618837,111910.0,111900.0,0.40270632]
[1757321104546,0.48448837,111910.0,111900.0,0.58348732]
[1757321104984,0.47948837,111910.0,111900.0,0.58348732]
[1757321105224,0.15133334,111910.0,111900.0,0.89427765]
[1757321105431,0.15133334,111910.0,111900.0,1.32782859]
[1757321105658,0.15133334,111910.0,111900.0,1.47734859]
[1757321106077,0.15133334,111910.0,111900.0,1.54098535]
[1757321106221,0.15133334,111910.0,111900.0,1.47037323]
[1757321106645,0.15133334,111910.0,111900.0,1.32085323]
[1757321106852,0.15133334,111910.0,111900.0,1.47037323]
[1757321107258,0.15133334,111910.0,111900.0,1.78116356]
[1757321107462,0.15133334,111910.0,111900.0,1.83212747]
[1757321107678,0.15133334,111910.0,111900.0,1.76849071]
[1757321108046,0.15133334,111910.0,111900.0,1.45870038]
[1757321108270,0.15133334,111910.0,111900.0,1.72350896]
[1757321108491,0.15133334,111910.0,111900.0,1.37312953]
[1757321108910,0.15133334,111910.0,111900.0,1.37512953]
[1757321109360,0.15133334,111910.0,111900.0,1.85280637]
[1757321109584,0.15133334,111910.0,111900.0,1.77412953]
[1757321110020,0.15133334,111910.0,111900.0,1.60047953]
[1757321110273,0.15133334,111910.0,111900.0,1.64209155]
[1757321110495,0.33004837,111910.0,111900.0,1.0309758]
[1757321110720,0.33004837,111910.0,111900.0,0.92138979]
[1757321110949,0.33504837,111910.0,111900.0,0.09391599]
[1757321111166,0.33504837,111910.0,111900.0,0.24351599]
[1757321111382,0.33504837,111910.0,111900.0,0.24651599]
[1757321112477,0.33504837,111910.0,111900.0,0.58651599]
[1757321112696,0.33504837,111910.0,111900.0,0.58451599]
[1757321113142,0.33504837,111910.0,111900.0,1.26238979]
[1757321113143,0.33004837,111910.0,111900.0,1.26238979]
[1757321113294,0.15133334,111910.0,111900.0,1.26538979]
[1757321113908,0.15133334,111910.0,111900.0,1.26438979]
[1757321116025,0.15133334,111910.0,111900.0,1.32526572]
[1757321116268,0.15133334,111910.0,111900.0,1.35158884]
[1757321116653,0.15133334,111910.0,111900.0,1.41513968]
[1757321116864,0.15133334,111910.0,111900.0,1.44197394]
[1757321117746,0.15133334,111910.0,111900.0,1.44297394]
[1757321118111,0.15133334,111910.0,111900.0,1.84297394]
[1757321118460,0.15133334,111910.0,111900.0,1.84197394]
[1757321119294,0.15133334,111910.0,111900.0,1.81765082]
[1757321120970,0.15133334,111910.0,111900.0,1.69832617]
[1757321121190,0.15133334,111910.0,111900.0,1.81761082]
[1757321122077,0.15133334,111910.0,111900.0,1.66805082]
[1757321122306,0.15133334,111910.0,111900.0,1.25960209]
[1757321122522,0.15133334,111910.0,111900.0,0.92454979]
[1757321122945,0.15133334,111910.0,111900.0,0.76745699]
[1757321123158,0.15133334,111910.0,111900.0,1.26654979]
[1757321125000,0.15133334,111910.0,111900.0,1.26454979]
[1757321125490,0.15133334,111910.0,111900.0,1.26554979]
[1757321126526,0.15133334,111910.0,111900.0,1.66554979]
[1757321126734,0.15133334,111910.0,111900.0,1.26554979]
[1757321130759,0.15133334,111910.0,111900.0,1.70513721]
[1757321131992,0.15133334,111910.0,111900.0,1.96833721]
[1757321132752,0.15133334,111910.0,111900.0,1.98927603]
[1757321133588,0.15133334,111910.0,111900.0,2.01611183]
[1757321133792,0.15133334,111910.0,111900.0,1.61611183]
[1757321134198,0.15133334,111910.0,111900.0,2.01611183]
[1757321134394,0.15133334,111910.0,111900.0,2.07966267]
[1757321135044,0.15133334,111910.0,111900.0,2.10799723]
[1757321135649,0.15133334,111910.0,111900.0,2.07966267]
[1757321135889,0.15133334,111910.0,111900.0,2.10799723]
[1757321136124,0.15133334,111910.0,111900.0,2.06863639]
[1757321138309,0.15133334,111910.0,111900.0,2.01611183]
[1757321139564,0.15133334,111910.0,111900.0,2.11997867]
[1757321140405,0.15133334,111910.0,111900.0,2.26983989]
[1757321141038,0.15133334,111910.0,111900.0,2.00663989]
[1757321141456,0.0106,111930.0,111920.0,0.19963789]
[1757321141667,0.0106,111930.0,111920.0,1.1567879]
[1757321141821,0.0106,111930.0,111920.0,1.1609479]
[1757321142025,0.0106,111930.0,111920.0,1.5609479]
[1757321143412,0.0106,111930.0,111920.0,1.58777833]
[1757321144685,0.0116,111930.0,111920.0,1.58777833]
[1757321145334,0.0106,111930.0,111920.0,1.58777833]
[1757321146022,0.0106,111930.0,111920.0,1.18877833]
[1757321149359,3.19079551,111960.0,111950.0,1.43197201]
[1757321149584,3.19295551,111960.0,111950.0,1.673528]
[1757321150460,3.19295551,111960.0,111950.0,1.98405199]
[1757321151106,3.19295551,111960.0,111950.0,1.673528]
[1757321151321,3.19295551,111960.0,111950.0,1.98405199]
[1757321151538,3.19295551,111960.0,111950.0,1.673528]
[1757321151748,3.19295551,111960.0,111950.0,1.98405199]
[1757321151980,3.19295551,111960.0,111950.0,1.80540081]
[1757321152627,3.19295551,111960.0,111950.0,1.98405199]
[1757321152851,3.19395551,111960.0,111950.0,1.80540081]
[1757321153087,3.0063864,111960.0,111950.0,1.98600199]
[1757321153324,3.0012164,111960.0,111950.0,2.70716598]
[1757321153767,3.0012164,111960.0,111950.0,2.73399262]
[1757321154215,3.0002164,111960.0,111950.0,2.73399262]
[1757321155141,3.0002164,111960.0,111950.0,2.74299746]
[1757321158447,3.0002164,111960.0,111950.0,1.97030948]
[1757321158680,3.0002164,111960.0,111950.0,2.74311746]
[1757321160075,3.0002164,111960.0,111950.0,2.74111746]
[1757321160709,3.0002164,111960.0,111950.0,2.74107746]
[1757321161397,3.0002164,111960.0,111950.0,2.76201628]
[1757321161617,3.0002164,111960.0,111950.0,2.76401628]
[1757321163265,3.0002164,111960.0,111950.0,2.30377229]
[1757321163525,3.0002164,111960.0,111950.0,2.76397628]
[1757321164713,3.0002164,111960.0,111950.0,3.07450027]
[1757321164908,3.0002164,111960.0,111950.0,3.13806428]
[1757321165117,3.0002164,111960.0,111950.0,2.82754029]
[1757321165847,3.0002164,111960.0,111950.0,3.1172971]
[1757321166390,3.0002164,111960.0,111950.0,3.1182971]
[1757321167023,3.0002164,111960.0,111950.0,3.30497309]
[1757321167228,3.0002164,111960.0,111950.0,3.42821628]
[1757321169800,3.0002164,111960.0,111950.0,2.8071683]
[1757321170061,3.0002164,111960.0,111950.0,3.42821628]
[1757321170494,3.0002164,111960.0,111950.0,2.37130948]
[1757321170710,3.0002164,111960.0,111950.0,2.83163347]
[1757321171179,3.0002164,111960.0,111950.0,2.43163347]
[1757321171421,3.0002164,111960.0,111950.0,2.43363347]
[1757321173691,3.0002164,111960.0,111950.0,2.45841298]
[1757321174216,3.0002164,111960.0,111950.0,2.30861298]
[1757321174432,3.0002164,111960.0,111950.0,2.45837298]
[1757321174657,3.0002164,111960.0,111950.0,2.46037298]
[1757321174877,3.0002164,111960.0,111950.0,2.77089697]
[1757321175790,3.0002164,111960.0,111950.0,3.03025628]
[1757321176010,3.0002164,111960.0,111950.0,3.05503579]
[1757321176254,3.0002164,111960.0,111950.0,3.05303579]
[1757321176480,2.52189935,111960.0,111950.0,3.76555978]
[1757321176708,2.52189935,111960.0,111950.0,3.50235978]
[1757321177409,2.03751692,111960.0,111950.0,3.55235978]
[1757321177647,2.03751692,111960.0,111950.0,3.55135978]
[1757321178078,2.03751692,111960.0,111950.0,3.55335978]
[1757321178281,1.50811776,111960.0,111950.0,3.64488978]
[1757321178500,1.37611384,111960.0,111950.0,3.64488978]
[1757321178714,1.37611384,111960.0,111950.0,3.62011027]
[1757321178947,1.37611384,111960.0,111950.0,3.57011027]
[1757321179169,1.37611384,111960.0,111950.0,3.62011027]
[1757321179394,1.37611384,111960.0,111950.0,3.61811027]
[1757321179830,1.37611384,111960.0,111950.0,3.42135027]
[1757321180051,1.37611384,111960.0,111950.0,3.18696628]
[1757321180273,1.37611384,111960.0,111950.0,3.23196628]
[1757321180525,1.37611384,111960.0,111950.0,3.07825628]
[1757321180775,1.37611384,111960.0,111950.0,3.18401628]
[1757321181395,1.37611384,111960.0,111950.0,3.03425628]
[1757321181608,1.37611384,111960.0,111950.0,3.18401628]
[1757321184026,1.37611384,111960.0,111950.0,3.20987345]
[1757321184464,1.37611384,111960.0,111950.0,3.49450027]
[1757321184698,1.37611384,111960.0,111950.0,3.52035744]
[1757321185136,0.89107479,111960.0,111950.0,3.83355744]
[1757321185360,0.70425728,111960.0,111950.0,3.85660744]
[1757321185502,0.65526393,111960.0,111950.0,3.85660744]
[1757321185719,0.65526393,111960.0,111950.0,3.90660744]
[1757321186005,0.65526393,111960.0,111950.0,3.8976026]
[1757321186211,0.65526393,111960.0,111950.0,3.8476026]
[1757321186406,0.65526393,111960.0,111950.0,3.8976026]
[1757321187337,0.65526393,111960.0,111950.0,3.87174543]
[1757321187711,0.65526393,111960.0,111950.0,3.8976026]
[1757321188031,0.65526393,111960.0,111950.0,3.87174543]
[1757321188774,0.65526393,111960.0,111950.0,3.82174543]
[1757321188978,0.65526393,111960.0,111950.0,3.87174543]
[1757321189220,0.65526393,111960.0,111950.0,3.82174543]
[1757321189822,0.65526393,111960.0,111950.0,3.79869543]
[1757321190266,0.65526393,111960.0,111950.0,3.74869543]